[Event "Live Chess"]
[Site "Chess.com"]
[Date "2023.05.21"]
[Round "-"]
[White "raminguy"]
[Black "mliszewski"]
[Result "1-0"]
[WhiteElo "1947"]
[BlackElo "1797"]
[TimeControl "300"]
[EndTime "6:26:34 PDT"]
[Termination "raminguy won by resignation"]

1. d4 {[%clk 0:04:57.8]} 1... d5 {[%clk 0:04:58.8]} 2. Nc3 {[%clk 0:04:57.2]}
2... Nc6 {[%clk 0:04:56.3]} 3. e4 {[%clk 0:04:55.4]} 3... dxe4 {[%clk
0:04:49.8]} 4. d5 {[%clk 0:04:55.3]} 4... Nb4 {[%clk 0:04:41.6]} 5. a3 {[%clk
0:04:53.3]} 5... Nxd5 {[%clk 0:04:34.4]} 6. Qxd5 {[%clk 0:04:50.8]} 6... Qxd5
{[%clk 0:04:33]} 7. Nxd5 {[%clk 0:04:49.7]} 7... Kd7 {[%clk 0:04:32.4]} 8. Bf4
{[%clk 0:04:45.3]} 8... c6 {[%clk 0:04:30.6]} 9. Nc7 {[%clk 0:04:41.2]} 9... Rb8
{[%clk 0:04:28.2]} 10. Kd1 {[%clk 0:04:39.7]} 10... e6 {[%clk 0:04:24.2]} 11.
Nxe6 {[%clk 0:04:37.3]} 11... fxe6 {[%clk 0:04:20.8]} 12. Bxb8 {[%clk
0:04:35.9]} 12... Bc5 {[%clk 0:04:20.4]} 13. Bg3 {[%clk 0:04:30.6]} 13... Ne7
{[%clk 0:04:19.5]} 14. Ke1 {[%clk 0:04:28.5]} 14... Nd5 {[%clk 0:04:17.7]} 15.
Rd1 {[%clk 0:04:28.4]} 15... Ke7 {[%clk 0:04:15.4]} 16. Bh4+ {[%clk 0:04:27.1]}
16... Kf7 {[%clk 0:04:14.3]} 17. Bc4 {[%clk 0:04:14.1]} 17... h6 {[%clk
0:04:11.5]} 18. Ne2 {[%clk 0:04:10.5]} 18... g5 {[%clk 0:04:06.3]} 19. Bg3
{[%clk 0:04:09.5]} 19... Rd8 {[%clk 0:04:04.7]} 20. h4 {[%clk 0:04:00.6]} 20...
g4 {[%clk 0:04:03]} 21. Nf4 {[%clk 0:03:56.6]} 21... Kf6 {[%clk 0:03:55.3]} 22.
Ba2 {[%clk 0:03:46.4]} 22... Bb6 {[%clk 0:03:51.9]} 23. Nh3 {[%clk 0:03:30.2]}
23... gxh3 {[%clk 0:03:35.4]} 24. h5 {[%clk 0:03:25.9]} 24... hxg2 {[%clk
0:03:31.5]} 25. Rg1 {[%clk 0:03:24.6]} 25... e5 {[%clk 0:03:23]} 26. Bh4+ {[%clk
0:03:22.5]} 26... Kf5 {[%clk 0:03:20.4]} 27. Bxd8 {[%clk 0:03:22.4]} 27... Bxd8
{[%clk 0:03:19.1]} 28. c4 {[%clk 0:03:21.7]} 28... Nf4 {[%clk 0:03:03.3]} 29.
Rxd8 {[%clk 0:03:17.9]} 29... Nd3+ {[%clk 0:03:02.4]} 30. Ke2 {[%clk 0:03:13.8]}
30... Be6 {[%clk 0:02:59.1]} 31. Re8 {[%clk 0:02:57.3]} 31... Nxb2 {[%clk
0:02:47]} 32. Rxg2 {[%clk 0:02:47.4]} 32... Na4 {[%clk 0:02:43.7]} 33. Kf1
{[%clk 0:02:41]} 33... Nc3 {[%clk 0:02:42.2]} 34. Bb3 {[%clk 0:02:38.7]} 34...
Nb1 {[%clk 0:02:36]} 35. Kg1 {[%clk 0:02:24]} 35... e3 {[%clk 0:02:33.6]} 36.
fxe3 {[%clk 0:02:18.3]} 36... Nxa3 {[%clk 0:02:27.9]} 37. Rf8+ {[%clk 0:02:16]}
37... Ke4 {[%clk 0:02:26.7]} 38. Re8 {[%clk 0:02:11.5]} 38... Bxc4 {[%clk
0:02:21.2]} 39. Bxc4 {[%clk 0:02:09.3]} 39... Nxc4 {[%clk 0:02:20.3]} 40. Rg4+
{[%clk 0:02:07.6]} 40... Kd3 {[%clk 0:02:15.8]} 41. Rxc4 {[%clk 0:02:06.6]}
41... Kxc4 {[%clk 0:02:14.1]} 42. Rxe5 {[%clk 0:02:06.3]} 42... Kd3 {[%clk
0:02:12.7]} 43. Re6 {[%clk 0:02:05.2]} 1-0

[Event "Live Chess"]
[Site "Chess.com"]
[Date "2023.05.21"]
[Round "-"]
[White "YrrriKharkiv"]
[Black "GMHarry-youtube"]
[Result "0-1"]
[WhiteElo "2066"]
[BlackElo "2044"]
[TimeControl "300"]
[EndTime "6:26:34 PDT"]
[Termination "GMHarry-youtube won by resignation"]

1. d4 {[%clk 0:04:53.9]} 1... Nf6 {[%clk 0:04:58.9]} 2. c4 {[%clk 0:04:53.6]}
2... g6 {[%clk 0:04:57.8]} 3. Nc3 {[%clk 0:04:52.8]} 3... d5 {[%clk 0:04:57.3]}
4. Qb3 {[%clk 0:04:49.6]} 4... dxc4 {[%clk 0:04:54.1]} 5. Qxc4 {[%clk
0:04:46.4]} 5... c6 {[%clk 0:04:53.2]} 6. e4 {[%clk 0:04:44.1]} 6... Bg7 {[%clk
0:04:48.7]} 7. Nf3 {[%clk 0:04:32.8]} 7... O-O {[%clk 0:04:46.5]} 8. h3 {[%clk
0:04:30.9]} 8... Nbd7 {[%clk 0:04:44.2]} 9. Be3 {[%clk 0:04:26.8]} 9... Re8
{[%clk 0:04:41.8]} 10. Rd1 {[%clk 0:04:22.5]} 10... Qa5 {[%clk 0:04:33.1]} 11.
Nd2 {[%clk 0:04:10.2]} 11... e5 {[%clk 0:04:26.8]} 12. Nb3 {[%clk 0:04:08.5]}
12... Qc7 {[%clk 0:04:19.7]} 13. d5 {[%clk 0:03:42.1]} 13... Nb6 {[%clk
0:04:09.5]} 14. Bxb6 {[%clk 0:03:40.5]} 14... Qxb6 {[%clk 0:04:08.3]} 15. Be2
{[%clk 0:03:32]} 15... cxd5 {[%clk 0:04:04.9]} 16. Nxd5 {[%clk 0:03:23.8]} 16...
Nxd5 {[%clk 0:04:03.1]} 17. exd5 {[%clk 0:03:22.9]} 17... Bf5 {[%clk 0:03:57.1]}
18. Qc5 {[%clk 0:03:08.1]} 18... Qxc5 {[%clk 0:03:46.8]} 19. Nxc5 {[%clk
0:03:05.2]} 19... b6 {[%clk 0:03:45.9]} 20. Na4 {[%clk 0:02:57.1]} 20... Bc2
{[%clk 0:03:41.3]} 21. b3 {[%clk 0:02:51.8]} 21... Bxd1 {[%clk 0:03:40.3]} 22.
Bxd1 {[%clk 0:02:51]} 22... Rad8 {[%clk 0:03:38.9]} 23. O-O {[%clk 0:02:47.2]}
0-1

[Event "Live Chess"]
[Site "Chess.com"]
[Date "2023.05.21"]
[Round "-"]
[White "Conradical12"]
[Black "HadesLearmonth"]
[Result "1-0"]
[WhiteElo "1588"]
[BlackElo "1202"]
[TimeControl "300"]
[EndTime "6:26:48 PDT"]
[Termination "Conradical12 won by checkmate"]

1. e4 {[%clk 0:04:56.7]} 1... e5 {[%clk 0:04:58.7]} 2. Nf3 {[%clk 0:04:55.8]}
2... Nc6 {[%clk 0:04:57]} 3. Bc4 {[%clk 0:04:54.7]} 3... Bc5 {[%clk 0:04:54.9]}
4. b4 {[%clk 0:04:52.8]} 4... Bb6 {[%clk 0:04:52.6]} 5. O-O {[%clk 0:04:50.7]}
5... Nf6 {[%clk 0:04:51.7]} 6. c3 {[%clk 0:04:49.9]} 6... O-O {[%clk 0:04:50.6]}
7. d4 {[%clk 0:04:40.8]} 7... d5 {[%clk 0:04:45.2]} 8. exd5 {[%clk 0:04:39.2]}
8... Nxd5 {[%clk 0:04:42.7]} 9. dxe5 {[%clk 0:04:38.3]} 9... Be6 {[%clk
0:04:34.5]} 10. Bd3 {[%clk 0:04:31.7]} 10... Bg4 {[%clk 0:04:21.1]} 11. h3
{[%clk 0:04:23.1]} 11... Bxf3 {[%clk 0:04:11.8]} 12. Qxf3 {[%clk 0:04:20.1]}
12... Nxe5 {[%clk 0:04:10.2]} 13. Qe4 {[%clk 0:04:12.9]} 13... Nxd3 {[%clk
0:04:04.7]} 14. Qxd3 {[%clk 0:04:10.7]} 14... c6 {[%clk 0:03:55.5]} 15. Bb2
{[%clk 0:04:06.7]} 15... Qg5 {[%clk 0:03:50.3]} 16. a4 {[%clk 0:03:53.9]} 16...
a5 {[%clk 0:03:48.3]} 17. b5 {[%clk 0:03:47.3]} 17... Nf4 {[%clk 0:03:44.2]} 18.
Qf3 {[%clk 0:03:42.6]} 18... Rae8 {[%clk 0:03:29.9]} 19. bxc6 {[%clk 0:03:34.2]}
19... bxc6 {[%clk 0:03:27.3]} 20. Kh1 {[%clk 0:03:30.7]} 20... Bc7 {[%clk
0:03:15.6]} 21. Ba3 {[%clk 0:03:22.7]} 21... Re6 {[%clk 0:02:59.9]} 22. Bxf8
{[%clk 0:03:19.7]} 22... Kxf8 {[%clk 0:02:59.8]} 23. Nd2 {[%clk 0:03:05.5]}
23... Rh6 {[%clk 0:02:58]} 24. Qg3 {[%clk 0:02:41]} 24... Qd5 {[%clk 0:02:46.1]}
25. Nf3 {[%clk 0:02:34.6]} 25... Bd6 {[%clk 0:02:37.6]} 26. Qg4 {[%clk
0:02:25.9]} 26... Ne2 {[%clk 0:02:25.2]} 27. Rae1 {[%clk 0:02:14.8]} 27... Nf4
{[%clk 0:02:16.9]} 28. Qc8# {[%clk 0:02:06.2]} 1-0

[Event "Live Chess"]
[Site "Chess.com"]
[Date "2023.05.21"]
[Round "-"]
[White "mattihelenius2"]
[Black "Olisingapore"]
[Result "0-1"]
[WhiteElo "491"]
[BlackElo "1774"]
[TimeControl "300"]
[EndTime "6:26:49 PDT"]
[Termination "Olisingapore won by resignation"]

1. d4 {[%clk 0:04:57.7]} 1... Nf6 {[%clk 0:04:58.6]} 2. c4 {[%clk 0:04:57.2]}
2... e6 {[%clk 0:04:57.3]} 3. Nc3 {[%clk 0:04:56.7]} 3... Bb4 {[%clk 0:04:56.4]}
4. Qb3 {[%clk 0:04:53.8]} 4... c5 {[%clk 0:04:54.8]} 5. Bd2 {[%clk 0:04:50]}
5... Nc6 {[%clk 0:04:52]} 6. Ne4 {[%clk 0:04:46.7]} 6... Nxe4 {[%clk 0:04:48.4]}
7. Bxb4 {[%clk 0:04:45.4]} 7... cxb4 {[%clk 0:04:44.4]} 8. Nf3 {[%clk
0:04:43.4]} 8... d5 {[%clk 0:04:38.4]} 9. c5 {[%clk 0:04:38.7]} 9... O-O {[%clk
0:04:37.3]} 10. Ne5 {[%clk 0:04:36.5]} 10... Nxe5 {[%clk 0:04:33]} 11. dxe5
{[%clk 0:04:36.4]} 11... Qa5 {[%clk 0:04:31.4]} 12. e3 {[%clk 0:04:33.3]} 12...
Nxc5 {[%clk 0:04:27.4]} 13. Qc4 {[%clk 0:04:28.6]} 13... Bd7 {[%clk 0:04:23.1]}
14. Rc1 {[%clk 0:04:24]} 14... Rac8 {[%clk 0:04:20.2]} 15. a3 {[%clk 0:04:21.5]}
15... bxa3+ {[%clk 0:04:13.1]} 16. b4 {[%clk 0:04:11.8]} 16... dxc4 {[%clk
0:03:45.2]} 17. bxa5 {[%clk 0:04:08]} 17... Nb3 {[%clk 0:03:43.1]} 18. Rc3
{[%clk 0:03:56.8]} 18... a2 {[%clk 0:03:29]} 19. Bxc4 {[%clk 0:03:44.6]} 19...
a1=Q+ {[%clk 0:03:25.9]} 20. Ke2 {[%clk 0:03:41.2]} 0-1

[Event "Live Chess"]
[Site "Chess.com"]
[Date "2023.05.21"]
[Round "-"]
[White "Hacker_2009"]
[Black "JackCheetham1"]
[Result "0-1"]
[WhiteElo "1921"]
[BlackElo "1702"]
[TimeControl "300"]
[EndTime "6:26:55 PDT"]
[Termination "JackCheetham1 won by resignation"]

1. d4 {[%clk 0:04:58]} 1... Nf6 {[%clk 0:04:57.9]} 2. Nf3 {[%clk 0:04:56.3]}
2... g6 {[%clk 0:04:54.6]} 3. c4 {[%clk 0:04:54.8]} 3... Bg7 {[%clk 0:04:53.5]}
4. Nc3 {[%clk 0:04:51.2]} 4... d6 {[%clk 0:04:51.9]} 5. e4 {[%clk 0:04:49.4]}
5... O-O {[%clk 0:04:49.2]} 6. Be2 {[%clk 0:04:44.9]} 6... Bg4 {[%clk
0:04:44.9]} 7. O-O {[%clk 0:04:36.9]} 7... Nbd7 {[%clk 0:04:42.7]} 8. b3 {[%clk
0:04:33.5]} 8... e5 {[%clk 0:04:40.2]} 9. Bb2 {[%clk 0:04:31.8]} 9... exd4
{[%clk 0:04:26.4]} 10. Nxd4 {[%clk 0:04:29.9]} 10... Bxe2 {[%clk 0:04:24.3]} 11.
Qxe2 {[%clk 0:04:27.5]} 11... Re8 {[%clk 0:04:18.8]} 12. f3 {[%clk 0:04:25.9]}
12... c6 {[%clk 0:04:14.3]} 13. Rfd1 {[%clk 0:04:15]} 13... Qb6 {[%clk
0:04:07.8]} 14. Qf2 {[%clk 0:04:11.4]} 14... Rad8 {[%clk 0:03:58.3]} 15. Rac1
{[%clk 0:03:58.3]} 15... Ne5 {[%clk 0:03:38.5]} 16. Nce2 {[%clk 0:03:49.3]}
16... d5 {[%clk 0:03:23.6]} 17. exd5 {[%clk 0:03:44.2]} 17... cxd5 {[%clk
0:03:22]} 18. cxd5 {[%clk 0:03:43.3]} 18... Rxd5 {[%clk 0:03:19.4]} 19. Ng3
{[%clk 0:03:29.4]} 19... Red8 {[%clk 0:03:04.5]} 20. Ne4 {[%clk 0:03:17.7]}
20... Nxe4 {[%clk 0:02:50.8]} 21. fxe4 {[%clk 0:03:16.4]} 21... R5d7 {[%clk
0:02:48.5]} 22. Rd2 {[%clk 0:02:54.6]} 22... Ng4 {[%clk 0:02:42.9]} 23. Qg3
{[%clk 0:02:50.7]} 23... Bxd4+ {[%clk 0:02:36.3]} 24. Bxd4 {[%clk 0:02:48.6]}
24... Rxd4 {[%clk 0:02:32.3]} 25. Rxd4 {[%clk 0:02:44.8]} 25... Qxd4+ {[%clk
0:02:30.5]} 0-1

[Event "Live Chess"]
[Site "Chess.com"]
[Date "2023.05.21"]
[Round "-"]
[White "domrobson"]
[Black "Missedidea"]
[Result "1-0"]
[WhiteElo "1760"]
[BlackElo "1780"]
[TimeControl "300"]
[EndTime "6:27:04 PDT"]
[Termination "domrobson won on time"]

1. d4 {[%clk 0:04:58.4]} 1... Nf6 {[%clk 0:04:57]} 2. c4 {[%clk 0:04:58]} 2...
g6 {[%clk 0:04:55.2]} 3. Nc3 {[%clk 0:04:56.3]} 3... Bg7 {[%clk 0:04:54.1]} 4.
e4 {[%clk 0:04:55.7]} 4... d6 {[%clk 0:04:53.2]} 5. Be2 {[%clk 0:04:55.4]} 5...
O-O {[%clk 0:04:52]} 6. Be3 {[%clk 0:04:54.6]} 6... Nc6 {[%clk 0:04:45.7]} 7.
Nf3 {[%clk 0:04:52]} 7... e5 {[%clk 0:04:42.7]} 8. d5 {[%clk 0:04:50.7]} 8...
Ne7 {[%clk 0:04:40.3]} 9. O-O {[%clk 0:04:49.3]} 9... Nd7 {[%clk 0:04:30.4]} 10.
b4 {[%clk 0:04:46]} 10... h6 {[%clk 0:04:24.8]} 11. Ne1 {[%clk 0:04:45]} 11...
f5 {[%clk 0:04:23.6]} 12. f3 {[%clk 0:04:44.2]} 12... f4 {[%clk 0:04:21.5]} 13.
Bf2 {[%clk 0:04:43.8]} 13... g5 {[%clk 0:04:19.4]} 14. a4 {[%clk 0:04:39.3]}
14... Nf6 {[%clk 0:04:17.7]} 15. Qb3 {[%clk 0:04:38.2]} 15... h5 {[%clk
0:04:14.8]} 16. c5 {[%clk 0:04:35.7]} 16... g4 {[%clk 0:04:11.8]} 17. g3 {[%clk
0:04:33.5]} 17... Ng6 {[%clk 0:04:03.6]} 18. b5 {[%clk 0:04:31.2]} 18... h4
{[%clk 0:03:42.4]} 19. gxh4 {[%clk 0:04:27.6]} 19... Kf7 {[%clk 0:03:39.1]} 20.
h5 {[%clk 0:04:21]} 20... Nxh5 {[%clk 0:03:36.2]} 21. fxg4 {[%clk 0:04:18.5]}
21... Nf6 {[%clk 0:03:33.7]} 22. h3 {[%clk 0:04:13.5]} 22... Rh8 {[%clk
0:03:31.4]} 23. Kg2 {[%clk 0:04:10.2]} 23... Nh4+ {[%clk 0:03:25.3]} 24. Bxh4
{[%clk 0:04:08.7]} 24... Rxh4 {[%clk 0:03:23.1]} 25. Nf3 {[%clk 0:04:06.8]}
25... Nxg4 {[%clk 0:03:15.8]} 26. hxg4 {[%clk 0:03:57.2]} 26... Rxg4+ {[%clk
0:03:13.9]} 27. Kf2 {[%clk 0:03:56]} 27... Qf6 {[%clk 0:02:52.1]} 28. Ke1 {[%clk
0:03:47.7]} 28... Qh6 {[%clk 0:02:37.2]} 29. Kd2 {[%clk 0:03:43]} 29... Rg3
{[%clk 0:02:29.7]} 30. Rh1 {[%clk 0:03:39.9]} 30... Rh3 {[%clk 0:02:28.6]} 31.
Rhg1 {[%clk 0:03:27.5]} 31... Bf6 {[%clk 0:02:20.1]} 32. c6 {[%clk 0:03:20]}
32... bxc6 {[%clk 0:02:17.2]} 33. bxc6 {[%clk 0:03:16.9]} 33... Ba6 {[%clk
0:02:09.4]} 34. Nb5 {[%clk 0:03:02.6]} 34... Rg8 {[%clk 0:01:56.7]} 35. Qb4
{[%clk 0:02:50.9]} 35... Rgg3 {[%clk 0:01:43.5]} 36. Qa5 {[%clk 0:02:33.7]}
36... Rxf3 {[%clk 0:01:26.3]} 37. Qxa6 {[%clk 0:02:21.4]} 37... Rb3 {[%clk
0:01:16.7]} 38. Kc2 {[%clk 0:02:05.9]} 38... Rb4 {[%clk 0:01:03.5]} 39. Nxc7
{[%clk 0:01:58.9]} 39... Rhb3 {[%clk 0:00:49.5]} 40. Rgb1 {[%clk 0:01:53.5]}
40... Rxb1 {[%clk 0:00:44.7]} 41. Rxb1 {[%clk 0:01:51.4]} 41... Rxb1 {[%clk
0:00:42.2]} 42. Kxb1 {[%clk 0:01:49.3]} 42... Qh1+ {[%clk 0:00:39.6]} 43. Kc2
{[%clk 0:01:40.7]} 43... Qxe4+ {[%clk 0:00:37.8]} 44. Qd3 {[%clk 0:01:37.2]}
44... Qxa4+ {[%clk 0:00:32.7]} 45. Kd2 {[%clk 0:01:31.1]} 45... e4 {[%clk
0:00:30.4]} 46. Qb5 {[%clk 0:01:19.2]} 46... Qa2+ {[%clk 0:00:26.2]} 47. Ke1
{[%clk 0:01:15.4]} 47... e3 {[%clk 0:00:21.4]} 48. Ne6 {[%clk 0:01:09.3]} 48...
Qa1+ {[%clk 0:00:17.2]} 49. Bd1 {[%clk 0:01:03.8]} 49... Bc3+ {[%clk 0:00:14.6]}
50. Ke2 {[%clk 0:00:59.3]} 50... f3+ {[%clk 0:00:11.4]} 51. Kxe3 {[%clk
0:00:50.6]} 51... Qxd1 {[%clk 0:00:07.6]} 52. Qb7+ {[%clk 0:00:50.2]} 52... Kg6
{[%clk 0:00:05.2]} 53. Nf4+ {[%clk 0:00:43.6]} 53... Kh6 {[%clk 0:00:03.1]} 54.
Qd7 {[%clk 0:00:34]} 1-0

[Event "Live Chess"]
[Site "Chess.com"]
[Date "2023.05.21"]
[Round "-"]
[White "ossie57"]
[Black "Man-Del-Brot"]
[Result "1-0"]
[WhiteElo "1841"]
[BlackElo "1024"]
[TimeControl "300"]
[EndTime "6:27:09 PDT"]
[Termination "ossie57 won on time"]

1. d4 {[%clk 0:04:57.4]} 1... Nf6 {[%clk 0:04:57.9]} 2. Nc3 {[%clk 0:04:56.8]}
2... d5 {[%clk 0:04:56.3]} 3. Bf4 {[%clk 0:04:56]} 3... Nbd7 {[%clk 0:04:54.7]}
4. Nb5 {[%clk 0:04:53.9]} 4... e5 {[%clk 0:04:51.4]} 5. dxe5 {[%clk 0:04:53.1]}
5... Nh5 {[%clk 0:04:47]} 6. e6 {[%clk 0:04:25.4]} 6... Nxf4 {[%clk 0:04:36.2]}
7. exf7+ {[%clk 0:04:24.5]} 7... Kxf7 {[%clk 0:04:32.9]} 8. e3 {[%clk
0:04:18.1]} 8... Ne6 {[%clk 0:04:13.1]} 9. Qxd5 {[%clk 0:04:14.1]} 9... Nf6
{[%clk 0:03:59.9]} 10. Qxd8 {[%clk 0:04:08.8]} 10... Nxd8 {[%clk 0:03:48.7]} 11.
Bc4+ {[%clk 0:04:06.2]} 11... Be6 {[%clk 0:03:37.3]} 12. Nxc7 {[%clk 0:04:00.6]}
12... Rc8 {[%clk 0:03:34.1]} 13. Bxe6+ {[%clk 0:03:56.4]} 13... Nxe6 {[%clk
0:03:30.8]} 14. Nxe6 {[%clk 0:03:56.3]} 14... Kxe6 {[%clk 0:03:29.2]} 15. O-O-O
{[%clk 0:03:54.8]} 15... Ne4 {[%clk 0:03:21.5]} 16. Nh3 {[%clk 0:03:51.9]} 16...
Bd6 {[%clk 0:03:18.1]} 17. f3 {[%clk 0:03:48]} 17... Nf6 {[%clk 0:02:52.5]} 18.
Ng5+ {[%clk 0:03:43.4]} 18... Ke7 {[%clk 0:02:16.1]} 19. e4 {[%clk 0:03:35.1]}
19... Bf4+ {[%clk 0:02:04.6]} 20. Kb1 {[%clk 0:03:33.5]} 20... Bxg5 {[%clk
0:02:03.4]} 21. e5 {[%clk 0:03:32.9]} 21... Nd5 {[%clk 0:01:58.7]} 22. g3 {[%clk
0:03:32]} 22... Rhd8 {[%clk 0:01:51.6]} 23. f4 {[%clk 0:03:30.6]} 23... Bh6
{[%clk 0:01:48.8]} 24. Rde1 {[%clk 0:03:27.3]} 24... g6 {[%clk 0:01:43.6]} 25.
Rhf1 {[%clk 0:03:25.9]} 25... Nb4 {[%clk 0:01:35.2]} 26. c3 {[%clk 0:03:23.6]}
26... Nd3 {[%clk 0:01:31.2]} 27. Re3 {[%clk 0:03:23]} 27... Nc5 {[%clk
0:01:28.6]} 28. h4 {[%clk 0:03:19.7]} 28... Rd3 {[%clk 0:01:26.3]} 29. Rxd3
{[%clk 0:03:12.6]} 29... Nxd3 {[%clk 0:01:25.1]} 30. h5 {[%clk 0:03:10.3]} 30...
gxh5 {[%clk 0:01:20.3]} 31. Rh1 {[%clk 0:03:09.4]} 31... Nf2 {[%clk 0:01:00.6]}
32. Rxh5 {[%clk 0:03:07.1]} 32... Ng4 {[%clk 0:00:50.8]} 33. Rh4 {[%clk
0:03:03.3]} 33... Rg8 {[%clk 0:00:44.3]} 34. a4 {[%clk 0:02:51.5]} 34... a5
{[%clk 0:00:42.3]} 35. Ka2 {[%clk 0:02:50.8]} 35... Ne3 {[%clk 0:00:37.6]} 36.
Rxh6 {[%clk 0:02:49.5]} 36... Rxg3 {[%clk 0:00:34.2]} 37. Rxh7+ {[%clk
0:02:48.9]} 37... Ke6 {[%clk 0:00:32.8]} 38. Rxb7 {[%clk 0:02:48.2]} 38... Kf5
{[%clk 0:00:31]} 39. Rf7+ {[%clk 0:02:43.9]} 39... Ke4 {[%clk 0:00:28.7]} 40. e6
{[%clk 0:02:41.9]} 40... Nf5 {[%clk 0:00:24.1]} 41. e7 {[%clk 0:02:39.3]} 41...
Nd6 {[%clk 0:00:22.3]} 42. Rf6 {[%clk 0:02:31.7]} 42... Ne8 {[%clk 0:00:14.4]}
43. Rf8 {[%clk 0:02:29.9]} 43... Nd6 {[%clk 0:00:11.2]} 44. Rd8 {[%clk 0:02:29]}
1-0

[Event "Live Chess"]
[Site "Chess.com"]
[Date "2023.05.21"]
[Round "-"]
[White "Mugzwang"]
[Black "risinghelios"]
[Result "0-1"]
[WhiteElo "1518"]
[BlackElo "1897"]
[TimeControl "300"]
[EndTime "6:27:10 PDT"]
[Termination "risinghelios won on time"]

1. Nf3 {[%clk 0:04:53.4]} 1... d5 {[%clk 0:04:59.3]} 2. c4 {[%clk 0:04:51.6]}
2... Bg4 {[%clk 0:04:59.2]} 3. Qb3 {[%clk 0:04:44.8]} 3... Bxf3 {[%clk
0:04:57.1]} 4. Qxf3 {[%clk 0:04:37.1]} 4... dxc4 {[%clk 0:04:55.3]} 5. Qxb7
{[%clk 0:04:35.5]} 5... Nd7 {[%clk 0:04:54.3]} 6. e3 {[%clk 0:04:31.6]} 6...
Ngf6 {[%clk 0:04:50.7]} 7. Bxc4 {[%clk 0:04:28.6]} 7... e6 {[%clk 0:04:50]} 8.
O-O {[%clk 0:04:21.6]} 8... Bd6 {[%clk 0:04:48.9]} 9. Nc3 {[%clk 0:04:12.6]}
9... O-O {[%clk 0:04:43.3]} 10. Ne4 {[%clk 0:04:06.5]} 10... Rb8 {[%clk
0:04:39.5]} 11. Qc6 {[%clk 0:04:00.7]} 11... Rb6 {[%clk 0:04:26.3]} 12. Nxf6+
{[%clk 0:03:57.5]} 12... Nxf6 {[%clk 0:04:20.6]} 13. Qf3 {[%clk 0:03:53.1]}
13... h5 {[%clk 0:04:16.9]} 14. b3 {[%clk 0:03:41.3]} 14... Rb7 {[%clk
0:04:00.3]} 15. Qxb7 {[%clk 0:03:37.2]} 15... Bxh2+ {[%clk 0:03:59.3]} 16. Kh1
{[%clk 0:02:46.6]} 16... Ng4 {[%clk 0:03:53.1]} 17. g3 {[%clk 0:02:24.6]} 17...
h4 {[%clk 0:03:28.6]} 18. Qf3 {[%clk 0:02:15.1]} 18... hxg3 {[%clk 0:03:05.4]}
19. Qxg4 {[%clk 0:02:09.8]} 19... gxf2 {[%clk 0:02:30.3]} 20. Rxf2 {[%clk
0:02:01.8]} 20... Be5 {[%clk 0:02:27.2]} 21. Rb1 {[%clk 0:01:55.2]} 21... f5
{[%clk 0:02:04.7]} 22. Qg2 {[%clk 0:01:25.2]} 22... Qh4+ {[%clk 0:01:41.2]} 23.
Qh2 {[%clk 0:01:10.9]} 23... Bxh2 {[%clk 0:01:30.2]} 24. Rxh2 {[%clk 0:01:09.8]}
24... Qe1+ {[%clk 0:01:29.4]} 25. Kg2 {[%clk 0:01:05.8]} 25... Rf6 {[%clk
0:01:28.9]} 26. Bf1 {[%clk 0:00:28.3]} 26... Rg6+ {[%clk 0:01:23.2]} 27. Kf3
{[%clk 0:00:24.4]} 27... Qg3+ {[%clk 0:01:10.1]} 28. Ke2 {[%clk 0:00:21]} 28...
Qxh2+ {[%clk 0:01:08.6]} 29. Kd3 {[%clk 0:00:19.2]} 29... Qd6+ {[%clk
0:01:07.1]} 30. Kc2 {[%clk 0:00:17.6]} 30... Qc5+ {[%clk 0:01:05.6]} 31. Bc4
{[%clk 0:00:16.4]} 31... Rg2 {[%clk 0:01:03.9]} 32. Bb2 {[%clk 0:00:14.9]} 32...
Qc6 {[%clk 0:00:59.6]} 33. Rh1 {[%clk 0:00:11.1]} 33... Rxd2+ {[%clk 0:00:57.4]}
34. Kxd2 {[%clk 0:00:10]} 34... Qxh1 {[%clk 0:00:57.3]} 35. Be2 {[%clk
0:00:08.6]} 35... g5 {[%clk 0:00:55.1]} 36. Bd4 {[%clk 0:00:07.3]} 36... Qd5
{[%clk 0:00:53.9]} 37. Bd3 {[%clk 0:00:05.5]} 37... c5 {[%clk 0:00:53.8]} 38.
Bc3 {[%clk 0:00:04.3]} 38... e5 {[%clk 0:00:53.2]} 39. Kc2 {[%clk 0:00:02.5]}
39... e4 {[%clk 0:00:53.1]} 40. Be2 {[%clk 0:00:01.5]} 40... f4 {[%clk 0:00:53]}
41. Bg4 {[%clk 0:00:00.5]} 41... f3 {[%clk 0:00:51.1]} 0-1